fUSD/lending_fUSD_20251011
["ID","MTS","AMOUNT","RATE_DAILY","PERIOD"]
[390786286,1760149834880,-559.65610174,0.000188,2]
[390786287,1760149834890,-154.76,0.000188,2]
[390786288,1760149834900,-871.2260306,0.00018812,2]
[390786289,1760149834909,-327.0,0.00018812,2]
[390786290,1760149834920,-327.0,0.00018818,2]
[390786291,1760149834930,-327.0,0.00018832,2]
[390786292,1760149834941,-1626.26004751,0.0001884,2]
[390786293,1760149834951,-2914.0,0.00018859,2]
[390786294,1760149834962,-2108.17124377,0.00018868,2]
[390786295,1760149834972,-500.0,0.00018868,2]
[390786296,1760149834982,-159.87,0.0001888,2]
[390786297,1760149834991,-5000.0,0.000189,2]
[390786298,1760149835001,-327.0,0.00018945,2]
[390786299,1760149835011,-167.9,0.00018969,2]
[390786300,1760149835021,-159.22,0.00018983,2]
[390786301,1760149835031,-2049.62960383,0.00019,2]
[390786302,1760149835052,-2199.58879422,0.00019,2]
[390786307,1760149838380,-500.0,0.00014165,2]
[390786308,1760149838391,-500.0,0.00014165,2]
[390786309,1760149838402,-404.46277561,0.00014165,2]
[390786310,1760149838412,-1409.38950728,0.00018557,2]
[390786311,1760149838457,-804.72009966,0.00018557,2]
[390786478,1760149840353,-1123.7780001,0.00018557,2]
[390786480,1760149840364,-67.11239296,0.00018557,2]
[390786481,1760149840375,-413.99905793,0.00019,2]
[390786488,1760149841579,-1251.38866319,0.00019,2]
[390786522,1760149843663,-446.8464,0.00018251,2]
[390786571,1760149846658,-400.26242332,0.00018251,2]
[390786573,1760149846667,-70.69104198,0.00018557,2]
[390786593,1760149915496,1000.0,0.00013699,2]
[390786598,1760150219971,302.0,0.00017,60]
[390786615,1760151031671,-160.95,0.00015,2]
[390786616,1760151031680,-1439.45103975,0.00015036,2]
[390786617,1760151031690,-258.5064975,0.00015373,2]
[390786618,1760151031699,-160.0,0.00015575,2]
[390786619,1760151031707,-200.0,0.0001633,2]
[390786620,1760151031715,-1200.0,0.00016498,2]
[390786621,1760151031723,-300.0,0.00016499,2]
[390786622,1760151031731,-300.0,0.00016499,2]
[390786623,1760151031740,-182.7476982,0.000165,2]
[390786739,1760151039510,-161.19222346,0.000165,2]
[390786740,1760151039522,-300.0,0.000165,2]
[390786741,1760151039534,-2000.0,0.000165,2]
[390786742,1760151039546,-2000.0,0.000165,2]
[390786743,1760151039558,-2500.0,0.000165,2]
[390786744,1760151039570,-2500.0,0.000165,2]
[390786745,1760151039584,-2500.0,0.000165,2]
[390786746,1760151039596,-2500.0,0.000165,2]
[390786747,1760151039609,-2500.0,0.000165,2]
[390786748,1760151039621,-150.0,0.000165,2]
[390786749,1760151039633,-500.0,0.000165,2]
[390786750,1760151039648,-500.0,0.000165,2]
[390786751,1760151039662,-500.0,0.000165,2]
[390786752,1760151039677,-500.0,0.000165,2]
[390786753,1760151039691,-500.0,0.000165,2]
[390786754,1760151039707,-253.71452054,0.000165,2]
[390786755,1760151039719,-500.0,0.0001663,2]
[390786756,1760151039731,-1000.0,0.00016638,2]
[390786757,1760151039742,-164.0274215,0.00016645,2]
[390786758,1760151039795,-150.9725785,0.00016645,2]
[390786759,1760151039804,-427.54518531,0.00016659,2]
[390786762,1760151040571,-572.45481469,0.00016659,2]
[390786763,1760151040595,-188.08356941,0.00016771,2]
[390786764,1760151040621,-386.0,0.00016771,2]
[390786765,1760151040630,-159.76934675,0.00016889,2]
[390786766,1760151040639,-1000.0,0.0001689,2]
[390786767,1760151040654,-1405.07191466,0.0001689,2]
[390786768,1760151040676,-1094.92808534,0.0001689,2]
[390786769,1760151040685,-640.18005858,0.00016925,2]
[390786770,1760151040696,-2823.615781,0.00016925,2]
[390786771,1760151040707,-834.17694534,0.00016925,2]
[390786797,1760151042764,-3486.49937393,0.00016925,2]
[390786798,1760151042965,-1135.74813428,0.00016925,2]
[390786799,1760151042976,-122.84970687,0.00016925,2]
[390786800,1760151042985,-150.0,0.00016976,2]
[390786801,1760151042994,-13.54869156,0.00016989,2]
[390786810,1760151046263,-261.68257917,0.00016989,2]
[390786813,1760151141593,712.2794349,7e-05,2]
[390786815,1760151536402,225.23,0.00012784,2]
[390786816,1760151782264,171.08,7.914e-05,2]
[390786817,1760151782470,171.08,0.00011871,2]
[390786842,1760152231693,-2751.0,0.00015693,2]
[390786843,1760152231706,-195.0,0.00015713,2]
[390786844,1760152231717,-300.0,0.00015713,2]
[390786845,1760152231727,-250.0,0.00015732,7]
[390786846,1760152231738,-300.0,0.00015774,2]
[390786847,1760152231749,-300.0,0.00015774,2]
[390786848,1760152231759,-313.46581895,0.00015774,2]
[390786849,1760152231769,-195.0,0.0001578,2]
[390786850,1760152231779,-171.08,0.00015828,2]
[390786851,1760152231789,-557.29717606,0.00015838,2]
[390786852,1760152231798,-250.0,0.00015849,2]
[390786853,1760152231808,-1200.0,0.00016042,2]
[390786854,1760152231819,-500.0,0.00016043,2]
[390786855,1760152231828,-194.70985424,0.00016043,2]
[390786856,1760152231838,-301.12929773,0.00016043,2]
[390786857,1760152231848,-300.0,0.00016043,2]
[390786858,1760152231858,-300.0,0.00016043,2]
[390786859,1760152231867,-1200.0,0.00016044,2]
[390786860,1760152231877,-666.0,0.00016247,3]
[390786861,1760152231887,-200.0,0.00016268,2]
[390786862,1760152231896,-3175.9939137,0.000165,2]
[390786863,1760152231910,-991.0,0.0001661,2]
[390786864,1760152231920,-652.83004084,0.00016628,2]
[390786865,1760152231930,-297.0,0.00016629,2]
[390786866,1760152231939,-937.0,0.00016639,2]
[390786867,1760152231949,-1299.0,0.00016639,2]
[390786868,1760152231958,-166.66,0.00016657,2]
[390786869,1760152231970,-437.257741,0.00016686,2]
[390786870,1760152231986,-927.8449114,0.00016686,2]
[390786871,1760152231996,-178.98333417,0.0001669,2]
[390786872,1760152232006,-157.51587462,0.0001669,2]
[390786873,1760152232015,-500.86027294,0.0001669,2]
[390786874,1760152232024,-407.96308055,0.0001669,2]
[390786875,1760152232034,-1000.0,0.00016699,2]
[390786876,1760152232043,-2500.0,0.00016699,2]
[390786877,1760152232052,-550.0,0.00016699,2]
[390786878,1760152232061,-533.62640973,0.000167,2]
[390786879,1760152232071,-166.37483985,0.000167,2]
[390786880,1760152232080,-847.10882333,0.00016728,2]
[390786881,1760152232090,-156.39107882,0.00016773,2]
[390786882,1760152232099,-615.50769708,0.00016773,2]
[390786883,1760152232108,-500.0,0.00016773,2]
[390786884,1760152232118,-500.0,0.00016773,2]
[390786885,1760152232127,-500.0,0.00016773,2]
[390786886,1760152232136,-500.0,0.00016773,2]
[390786887,1760152232145,-500.0,0.00016773,2]
[390786888,1760152232158,-254.40297191,0.00016773,2]
[390786889,1760152232167,-500.0,0.00016773,2]
[390786890,1760152232177,-500.0,0.00016773,2]
[390786891,1760152232186,-500.0,0.00016773,2]
[390786892,1760152232195,-500.0,0.00016773,2]
[390786893,1760152232204,-500.0,0.00016773,2]
[390786894,1760152232214,-150.0,0.00016773,2]
[390786895,1760152232223,-206.639166,0.00016779,2]
[390786896,1760152232233,-151.0,0.00016786,2]
[390786898,1760152232242,-44955.93463866,0.00016789,2]
[390786900,1760152232254,-879.1401216,0.00016789,2]
[390786902,1760152232294,-46704.05527833,0.00016789,2]
[390786903,1760152232336,-552.0,0.00016789,2]
[390786904,1760152232347,-119700.83196645,0.00016789,2]
[390786905,1760152232358,-15571.82158168,0.00016789,2]
[390786906,1760152232369,-14225.08907841,0.00016789,2]
[390786907,1760152232394,-392.44799991,0.00016789,2]
[390786945,1760152238093,-560.79050841,0.00015773,2]
[390786947,1760152238102,-5282.84109602,0.0001669,2]
[390786949,1760152238111,-5520.97116817,0.00016789,2]
[390786952,1760152238123,-2217.072792,0.00016789,2]
[390787105,1760152239784,-264.2769318,0.00016789,2]
[390787116,1760152239876,-78512.09904642,0.00016789,2]
[390787474,1760152243149,-163.21806251,0.00016789,2]
[390787476,1760152243162,-113528.988602,0.00016789,2]
[390787479,1760152243183,-5783.4,0.00016789,2]
[390787730,1760152246202,-721.65767382,0.00016789,2]
[390787736,1760152246247,-9618.63634,0.00016789,2]
[390787740,1760152246279,-894.2704742,0.00016789,2]
[390787747,1760152246333,-1933.95761976,0.00016789,2]
[390793643,1760152338848,500.0,7e-05,2]
[390793644,1760152338939,500.0,7e-05,2]
[390793645,1760152339455,500.0,7e-05,2]
[390793646,1760152340317,500.0,7e-05,2]
[390793647,1760152340654,660.39639534,6.201e-05,2]
[390793648,1760152340712,500.0,7e-05,2]
[390793649,1760152340847,500.0,6.201e-05,2]
[390793650,1760152341126,507.86283976,6.201e-05,2]
[390793651,1760152344256,504.61173888,7e-05,2]
[390793652,1760152348634,500.0,7e-05,2]
[390793653,1760152355650,500.0,7e-05,2]
[390793654,1760152355985,625.30062235,6.201e-05,2]
[390793658,1760152643215,1000.0,0.00013699,2]
[390793659,1760153136821,7541.00963588,9e-05,2]
[390793660,1760153161775,7905.8927683,8e-05,2]
[390793662,1760153240310,500.0,7e-05,2]
[390793663,1760153240620,500.0,7e-05,2]
[390793664,1760153240995,500.0,6.201e-05,2]
[390793737,1760153432686,-530.470425,0.00014848,2]
[390793741,1760153432696,-224.71429032,0.00014942,2]
[390793744,1760153432706,-195.0,0.00014961,2]
[390793746,1760153432716,-300.0,0.00014961,2]
[390793748,1760153432725,-195.0,0.00014998,2]
[390793750,1760153432735,-1200.0,0.00014999,2]
[390793752,1760153432744,-300.0,0.00014999,2]
[390793754,1760153432754,-300.0,0.00014999,2]
[390793756,1760153432763,-300.0,0.00014999,2]
[390793758,1760153432774,-2000.0,0.00015,2]
[390793760,1760153432783,-7109.34488419,0.00015,2]
[390793771,1760153432872,-33197.33647429,0.00015,2]
[390793773,1760153432881,-250.0,0.00015067,2]
[390793775,1760153432892,-300.0,0.0001521,2]
[390793778,1760153432907,-300.0,0.0001521,2]
[390793779,1760153432917,-150.0,0.00015248,2]
[390793781,1760153432926,-300.0,0.00015278,2]
[390793783,1760153432936,-2973.0,0.00015305,2]
[390793785,1760153432945,-1500.0,0.0001537,2]
[390793787,1760153432955,-160.0,0.00015537,2]
[390793789,1760153432965,-278.6,0.0001554,2]
[390793791,1760153432975,-271.0,0.00015625,2]
[390793793,1760153432986,-300.0,0.00015631,2]
[390793796,1760153433002,-340.5774,0.00015632,2]
[390793798,1760153433012,-168.0,0.00015675,2]
[390793800,1760153433022,-1200.0,0.00015676,2]
[390793802,1760153433032,-260.0,0.00015803,2]
[390793804,1760153433041,-277.0,0.00015803,2]
[390793806,1760153433051,-172.64,0.0001582,2]
[390793809,1760153433061,-2500.0,0.00015836,2]
[390793811,1760153433071,-503.0,0.0001589,2]
[390793813,1760153433080,-1600.0,0.00015891,2]
[390793815,1760153433090,-2374.94,0.00015904,2]
[390793817,1760153433100,-7839.43,0.00015936,2]
[390793819,1760153433109,-151.0,0.0001599,2]
[390793821,1760153433119,-151.0,0.0001599,2]
[390793823,1760153433128,-151.0,0.0001599,2]
[390793825,1760153433138,-151.0,0.0001599,2]
[390793827,1760153433147,-151.0,0.0001599,2]
[390793829,1760153433161,-151.0,0.0001599,2]
[390793831,1760153433171,-151.0,0.0001599,2]
[390793833,1760153433180,-151.0,0.0001599,2]
[390793835,1760153433190,-151.0,0.0001599,2]
[390793837,1760153433199,-151.0,0.0001599,2]
[390793839,1760153433209,-151.0,0.0001599,2]
[390793842,1760153433219,-151.0,0.0001599,2]
[390793844,1760153433229,-151.0,0.0001599,2]
[390793846,1760153433238,-151.0,0.0001599,2]
[390793848,1760153433247,-151.0,0.0001599,2]
[390793850,1760153433257,-151.0,0.0001599,2]
[390793852,1760153433267,-151.0,0.0001599,2]
[390793854,1760153433277,-200.0,0.0001599,2]
[390793856,1760153433287,-151.0,0.0001599,2]
[390793858,1760153433296,-151.0,0.0001599,2]
[390793860,1760153433306,-151.0,0.0001599,2]
[390793861,1760153433316,-500.0,0.0001599,2]
[390793863,1760153433326,-151.0,0.0001599,2]
[390793865,1760153433335,-500.0,0.0001599,2]
[390793867,1760153433344,-151.0,0.0001599,2]
[390793868,1760153433354,-283.81754036,0.0001599,2]
[390793870,1760153433364,-215.12912554,0.0001599,2]
[390793871,1760153433373,-151.0,0.0001599,2]
[390793872,1760153433387,-151.0,0.0001599,2]
[390793873,1760153433397,-151.0,0.0001599,2]
[390793874,1760153433409,-200.0,0.0001599,2]
[390793875,1760153433419,-151.0,0.0001599,2]
[390793876,1760153433429,-151.0,0.0001599,2]
[390793877,1760153433439,-151.0,0.0001599,2]
[390793878,1760153433448,-168.84223589,0.0001599,2]
[390793879,1760153433458,-151.0,0.0001599,2]
[390793880,1760153433467,-151.0,0.0001599,2]
[390793881,1760153433478,-151.0,0.0001599,2]
[390793882,1760153433487,-151.0,0.0001599,2]
[390793883,1760153433497,-151.0,0.0001599,2]
[390793884,1760153433506,-151.0,0.0001599,2]
[390793885,1760153433516,-151.0,0.0001599,2]
[390793886,1760153433526,-151.0,0.0001599,2]
[390793887,1760153433536,-151.0,0.00015997,2]
[390793888,1760153433547,-895.06,0.00016,2]
[390793889,1760153433556,-17002.58411444,0.00016,2]
[390793890,1760153433568,-9999.99,0.00016,2]
[390793891,1760153433578,-5453.66,0.00016,2]
[390793892,1760153433588,-223.63149538,0.00016037,2]
[390793893,1760153433598,-474.4,0.00016164,2]
[390793894,1760153433607,-150.0,0.00016178,2]
[390793895,1760153433619,-1354.0,0.00016184,2]
[390793896,1760153433628,-244.0,0.0001627,2]
[390793897,1760153433638,-365.46,0.00016288,2]
[390793898,1760153433648,-150.51,0.00016361,2]
[390793899,1760153433658,-195.0,0.00016416,2]
[390793900,1760153433668,-300.0,0.00016416,2]
[390793901,1760153433677,-300.0,0.00016416,2]
[390793902,1760153433686,-2000.0,0.00016416,2]
[390793903,1760153433696,-420.0,0.00016416,2]
[390793904,1760153433706,-420.0,0.00016416,2]
[390793905,1760153433715,-420.0,0.00016416,2]
[390793906,1760153433725,-2500.0,0.00016499,2]
[390793907,1760153433734,-2000.0,0.00016499,2]
[390793908,1760153433744,-1680.0,0.00016499,2]
[390793909,1760153433754,-500.0,0.000165,6]
[390793910,1760153433763,-250.0,0.000165,2]
[390793911,1760153433772,-200.0,0.00016538,2]
[390793912,1760153434348,-200.0,0.00016538,2]
[390793913,1760153434370,-889.25951325,0.00016558,2]
[390793914,1760153434379,-1100.0,0.000166,6]
[390793915,1760153434390,-6750.02201704,0.00016612,2]
[390793916,1760153434399,-1842.80691,0.0001662,2]
[390793917,1760153434412,-2500.0,0.00016678,2]
[390793918,1760153434422,-3341.2821,0.00016685,2]
[390793919,1760153434431,-233.2136,0.00016685,2]
[390793920,1760153434441,-1499.9248,0.00016685,2]
[390793921,1760153434450,-1000.0,0.00016685,2]
[390793922,1760153434460,-2500.0,0.00016685,2]
[390793923,1760153434469,-224.49562886,0.00016685,2]
[390793924,1760153434479,-224.49562886,0.00016685,2]
[390793925,1760153434489,-167.18542004,0.00016685,2]
[390793926,1760153434503,-1547.38975243,0.00016685,2]
[390793927,1760153434512,-500.0,0.00016688,2]
[390793928,1760153434522,-500.0,0.00016688,2]
[390793929,1760153434532,-500.0,0.00016688,2]
[390793930,1760153434542,-500.0,0.00016688,2]
[390793931,1760153434552,-2500.0,0.00016688,2]
[390793932,1760153434561,-2500.0,0.00016688,2]
[390793933,1760153434571,-300.0,0.00016688,2]
[390793934,1760153434580,-250.0,0.00016688,2]
[390793935,1760153434591,-300.0,0.00016688,2]
[390793936,1760153434600,-224.49562889,0.00016689,2]
[390793937,1760153434611,-1000.0,0.00016689,2]
[390793938,1760153434620,-1600.0,0.000167,6]
[390793939,1760153434630,-810.77,0.00016703,2]
[390793940,1760153434644,-546.15,0.00016712,2]
[390793941,1760153434663,-2397.52,0.00016712,2]
[390793942,1760153434673,-500.0,0.00016731,2]
[390793943,1760153434682,-2500.0,0.00016731,2]
[390793944,1760153434692,-2500.0,0.00016731,2]
[390793945,1760153434701,-151.0,0.00016752,2]
[390793946,1760153434710,-6750.02201698,0.00016755,2]
[390793947,1760153434720,-510.0,0.00016756,2]
[390793948,1760153434729,-527.7598,0.00016767,2]
[390793949,1760153434739,-426.9011278,0.00016768,2]
[390793950,1760153434748,-808.18,0.00016772,2]
[390793951,1760153434758,-150.0,0.00016773,2]
[390793952,1760153434767,-501.66824024,0.00016773,2]
[390793953,1760153434777,-500.0,0.00016773,2]
[390793954,1760153434787,-500.0,0.00016773,2]
[390793955,1760153434796,-500.0,0.00016773,2]
[390793956,1760153434806,-500.0,0.00016773,2]
[390793957,1760153434816,-500.0,0.00016773,2]
[390793958,1760153434826,-500.0,0.00016773,2]
[390793959,1760153434836,-501.90496123,0.00016773,2]
[390793960,1760153434846,-503.02451098,0.00016773,2]
[390793961,1760153434856,-171.81861011,0.00016773,2]
[390793962,1760153434866,-500.0,0.00016773,2]
[390793963,1760153434876,-500.0,0.00016773,2]
[390793964,1760153434887,-500.0,0.00016773,2]
[390793965,1760153434898,-500.75214098,0.00016773,2]
[390793966,1760153434911,-150.0,0.00016775,2]
[390793967,1760153434921,-150.0,0.00016775,2]
[390793968,1760153434931,-500.0,0.00016775,2]
[390793969,1760153434942,-150.0,0.00016775,2]
[390793970,1760153434951,-500.0,0.00016775,2]
[390793971,1760153434961,-150.0,0.00016775,2]
[390793972,1760153434972,-500.0,0.00016775,2]
[390793973,1760153434982,-500.0,0.00016775,2]
[390793974,1760153434992,-500.0,0.00016775,2]
[390793975,1760153435002,-500.0,0.00016775,2]
[390793976,1760153435013,-500.0,0.00016775,2]
[390793977,1760153435023,-150.0,0.00016775,2]
[390793978,1760153435033,-500.0,0.00016775,2]
[390793979,1760153435043,-863.0,0.00016775,2]
[390793980,1760153435053,-150.59891275,0.00016775,2]
[390793981,1760153435063,-150.0,0.00016775,2]
[390793982,1760153435073,-151.0,0.00016782,2]
[390793983,1760153435083,-4784.5978599,0.00016785,2]
[390793984,1760153435093,-74012.4753578,0.00016785,2]
[390793985,1760153435103,-143421.6377439,0.00016785,2]
[390793986,1760153435113,-151.0,0.00016785,2]
[390793987,1760153435127,-151.0,0.00016785,2]
[390793988,1760153435137,-819.842753,0.00016785,2]
[390793989,1760153435147,-819.842753,0.00016785,2]
[390793990,1760153435158,-819.842753,0.00016785,2]
[390793991,1760153435169,-268.077224,0.00016785,2]
[390793992,1760153435179,-819.842753,0.00016785,2]
[390793993,1760153435189,-151.0,0.00016785,2]
[390793994,1760153435200,-151.0,0.00016785,2]
[390793995,1760153435211,-269.957791,0.00016785,2]
[390793996,1760153435223,-151.0,0.00016785,2]
[390793997,1760153435234,-151.0,0.00016785,2]
[390793998,1760153435244,-151.0,0.00016785,2]
[390793999,1760153435254,-151.0,0.00016785,2]
[390794000,1760153435265,-151.0,0.00016785,2]
[390794001,1760153435275,-1112.870766,0.00016785,2]
[390794002,1760153435285,-151.0,0.00016785,2]
[390794003,1760153435295,-1112.870766,0.00016785,2]
[390794004,1760153435306,-1112.870766,0.00016785,2]
[390794005,1760153435316,-207.800063,0.00016785,2]
[390794006,1760153435325,-1112.870766,0.00016785,2]
[390794007,1760153435335,-151.0,0.00016785,2]
[390794008,1760153435345,-207.800063,0.00016785,2]
[390794009,1760153435355,-532.892768,0.00016785,2]
[390794010,1760153435365,-151.0,0.00016785,2]
[390794011,1760153435375,-207.800063,0.00016785,2]
[390794012,1760153435387,-532.892768,0.00016785,2]
[390794013,1760153435397,-207.800063,0.00016785,2]
[390794014,1760153435409,-151.0,0.00016785,2]
[390794015,1760153435419,-170.4616,0.00016785,2]
[390794016,1760153435429,-151.0,0.00016785,2]
[390794017,1760153435439,-532.892768,0.00016785,2]
[390794018,1760153435449,-151.0,0.00016785,2]
[390794019,1760153435460,-170.4616,0.00016785,2]
[390794020,1760153435470,-151.0,0.00016785,2]
[390794021,1760153435481,-532.892768,0.00016785,2]
[390794022,1760153435492,-170.4616,0.00016785,2]
[390794023,1760153435502,-276.818922,0.00016785,2]
[390794024,1760153435516,-170.4616,0.00016785,2]
[390794025,1760153435526,-297.732734,0.00016785,2]
[390794026,1760153435536,-151.0,0.00016785,2]
[390794027,1760153435546,-297.732734,0.00016785,2]
[390794028,1760153435555,-151.0,0.00016785,2]
[390794029,1760153435565,-151.0,0.00016785,2]
[390794030,1760153435575,-297.732734,0.00016785,2]
[390794031,1760153435585,-297.732734,0.00016785,2]
[390794032,1760153435594,-151.0,0.00016785,2]
[390794033,1760153435604,-151.0,0.00016785,2]
[390794034,1760153435614,-151.0,0.00016785,2]
[390794035,1760153435623,-151.0,0.00016785,2]
[390794036,1760153435633,-151.595099,0.00016785,2]
[390794037,1760153435643,-151.0,0.00016785,2]
[390794038,1760153435652,-151.0,0.00016785,2]
[390794039,1760153435665,-151.0,0.00016785,2]
[390794040,1760153435675,-151.0,0.00016785,2]
[390794041,1760153435685,-151.0,0.00016785,2]
[390794042,1760153435694,-151.0,0.00016785,2]
[390794043,1760153435705,-436.30105,0.00016785,2]
[390794044,1760153435715,-436.30105,0.00016785,2]
[390794045,1760153435724,-436.30105,0.00016785,2]
[390794046,1760153435734,-151.0,0.00016785,2]
[390794047,1760153435747,-151.0,0.00016785,2]
[390794048,1760153435757,-436.30105,0.00016785,2]
[390794049,1760153435767,-151.0,0.00016785,2]
[390794050,1760153435776,-151.0,0.00016785,2]
[390794051,1760153435786,-151.0,0.00016785,2]
[390794052,1760153435795,-151.0,0.00016785,2]
[390794053,1760153435805,-730.353615,0.00016785,2]
[390794054,1760153435814,-151.0,0.00016785,2]
[390794055,1760153435824,-151.0,0.00016785,2]
[390794056,1760153435834,-151.0,0.00016785,2]
[390794057,1760153435844,-151.0,0.00016785,2]
[390794058,1760153435854,-730.353615,0.00016785,2]
[390794059,1760153435863,-151.0,0.00016785,2]
[390794060,1760153435873,-151.0,0.00016785,2]
[390794061,1760153435883,-151.0,0.00016785,2]
[390794062,1760153435896,-730.353615,0.00016785,2]
[390794063,1760153435908,-151.0,0.00016785,2]
[390794064,1760153435918,-151.0,0.00016785,2]
[390794065,1760153435928,-165.664815,0.00016785,2]
[390794066,1760153435939,-151.0,0.00016785,2]
[390794067,1760153435950,-730.353615,0.00016785,2]
[390794068,1760153435960,-151.0,0.00016785,2]
[390794069,1760153435971,-151.0,0.00016785,2]
[390794070,1760153435983,-151.0,0.00016785,2]
[390794071,1760153435992,-151.0,0.00016785,2]
[390794072,1760153436002,-151.0,0.00016785,2]
[390794073,1760153436012,-151.0,0.00016785,2]
[390794074,1760153436023,-302.174598,0.00016785,2]
[390794075,1760153436033,-151.0,0.00016785,2]
[390794076,1760153436044,-151.0,0.00016785,2]
[390794077,1760153436056,-302.174598,0.00016785,2]
[390794078,1760153436067,-151.0,0.00016785,2]
[390794079,1760153436079,-151.0,0.00016785,2]
[390794080,1760153436098,-302.174598,0.00016785,2]
[390794081,1760153436108,-343.077386,0.00016785,2]
[390794082,1760153436118,-302.174598,0.00016785,2]
[390794083,1760153436127,-343.077386,0.00016785,2]
[390794084,1760153436137,-343.077386,0.00016785,2]
[390794085,1760153436147,-343.077386,0.00016785,2]
[390794086,1760153436158,-203.923534,0.00016785,2]
[390794087,1760153436168,-151.0,0.00016785,2]
[390794088,1760153436179,-203.923534,0.00016785,2]
[390794089,1760153436189,-151.0,0.00016785,2]
[390794090,1760153436200,-151.0,0.00016785,2]
[390794091,1760153436210,-203.923534,0.00016785,2]
[390794092,1760153436220,-151.0,0.00016785,2]
[390794093,1760153436230,-151.0,0.00016785,2]
[390794094,1760153436240,-767.087767,0.00016785,2]
[390794095,1760153436250,-203.923534,0.00016785,2]
[390794096,1760153436259,-151.0,0.00016785,2]
[390794097,1760153436269,-213.684144,0.00016785,2]
[390794098,1760153436278,-767.087767,0.00016785,2]
[390794099,1760153436288,-767.087767,0.00016785,2]
[390794100,1760153436298,-767.087767,0.00016785,2]
[390794101,1760153436307,-151.0,0.00016785,2]
[390794102,1760153436318,-151.0,0.00016785,2]
[390794103,1760153436327,-151.0,0.00016785,2]
[390794104,1760153436337,-151.0,0.00016785,2]
[390794105,1760153436346,-151.0,0.00016785,2]
[390794106,1760153436355,-161.662219,0.00016785,2]
[390794107,1760153436365,-151.0,0.00016785,2]
[390794108,1760153436375,-161.662219,0.00016785,2]
[390794109,1760153436385,-151.0,0.00016785,2]
[390794110,1760153436394,-151.0,0.00016785,2]
[390794111,1760153436407,-161.662219,0.00016785,2]
[390794112,1760153436416,-151.0,0.00016785,2]
[390794113,1760153436426,-161.662219,0.00016785,2]
[390794114,1760153436436,-151.0,0.00016785,2]
[390794115,1760153436447,-289.028835,0.00016785,2]
[390794116,1760153436456,-151.0,0.00016785,2]
[390794117,1760153436466,-289.028835,0.00016785,2]
[390794118,1760153436476,-267.474611,0.00016785,2]
[390794119,1760153436485,-221.978385,0.00016785,2]
[390794120,1760153436495,-289.028835,0.00016785,2]
[390794121,1760153436505,-221.978385,0.00016785,2]
[390794122,1760153436515,-289.028835,0.00016785,2]
[390794123,1760153436525,-221.978385,0.00016785,2]
[390794124,1760153436535,-7778.88449,0.00016785,2]
[390794125,1760153436547,-221.978385,0.00016785,2]
[390794126,1760153436556,-7778.88449,0.00016785,2]
[390794127,1760153436567,-7778.88449,0.00016785,2]
[390794128,1760153436577,-151.0,0.00016785,2]
[390794129,1760153436586,-7778.88449,0.00016785,2]
[390794130,1760153436596,-151.0,0.00016785,2]
[390794131,1760153436606,-152.057875,0.00016785,2]
[390794132,1760153436615,-151.0,0.00016785,2]
[390794133,1760153436625,-157.203556,0.00016785,2]
[390794134,1760153436635,-305.868587,0.00016785,2]